bitfinex-derivatives/quotes_SOLF0:USTF0_20260115
["timestamp","ask_amount","ask_price","bid_price","bid_amount"]
[1768491337855,0.04703517,142.81,142.74,6.3066]
[1768491339158,0.04703517,142.81,142.76,0.04489123]
[1768491340058,24.01206986,142.81,142.76,0.04489123]
[1768491340658,23.96503469,142.79,142.7,29.95454028]
[1768491341157,23.96503469,142.79,142.71,6.3082]
[1768491341361,23.96503469,142.79,142.71,29.95424028]
[1768491341756,0.04502673,142.76,142.71,29.95424028]
[1768491341956,23.96503469,142.79,142.71,29.95424028]
[1768491342955,82.78,142.8,142.72,29.95384028]
[1768491343359,29.57372136,142.82,142.72,23.64604028]
[1768491343561,112.37372136,142.82,142.74,6.3069]
[1768491343761,0.04657196,142.78,142.76,0.05097253]
[1768491344362,106.76503469,142.82,142.76,0.05097253]
[1768491344555,82.8,142.82,142.76,0.05097253]
[1768491345062,106.76503469,142.84,142.76,0.05097253]
[1768491345261,106.76503469,142.84,142.75,6.3064]
[1768491345462,23.96503469,142.83,142.75,6.3064]
[1768491345657,23.96503469,142.83,142.78,0.05251495]
[1768491346058,23.96503469,142.83,142.73,6.3072]
[1768491346257,24.01313017,142.82,142.73,6.3072]
[1768491346464,23.96503469,142.82,142.73,6.3072]
[1768491346960,29.57372136,142.82,142.71,112.71414028]
[1768491347265,29.04683612,142.81,142.71,106.40604028]
[1768491347459,0.04563247,142.78,142.75,0.05054295]
[1768491347856,0.04563247,142.78,142.75,6.35704295]
[1768491348156,0.04563247,142.78,142.75,0.05054295]
[1768491354765,0.04563247,142.78,142.75,6.35694295]
[1768491354976,106.99445657,142.84,142.75,30.90135136]
[1768491355172,9.98828826,142.83,142.75,30.85080841]
[1768491355369,5.10483145,142.82,142.75,30.85080841]
[1768491355565,5.10483145,142.81,142.75,30.85080841]
[1768491355771,5.10483145,142.8,142.75,30.85080841]
[1768491356070,106.99445657,142.84,142.76,0.04801153]
[1768491356270,9.9868591,142.83,142.76,0.04801153]
[1768491356470,5.10311481,142.82,142.76,0.04801153]
[1768491356672,24.19445657,142.84,142.76,24.59241994]
[1768491356882,24.19445657,142.82,142.7,24.54440841]
[1768491357070,24.19445657,142.8,142.7,24.54440841]
[1768491357376,29.29699395,142.79,142.69,6.3088]
[1768491357681,24.19445657,142.77,142.69,6.3088]
[1768491358266,0.05339986,142.74,142.69,6.3088]
[1768491358881,0.05339986,142.74,142.67,24.54440841]
[1768491358882,0.05339986,142.74,142.67,30.85420841]
[1768491359276,0.05339986,142.74,142.67,24.54440841]
[1768491359683,29.28774194,142.73,142.65,6.3106]
[1768491359883,24.19445657,142.73,142.69,0.04948344]
[1768491360282,11.91408667,142.78,142.69,0.04948344]
[1768491360283,0.05262631,142.7,142.69,0.04948344]
[1768491360592,24.19445657,142.74,142.66,24.54440841]
[1768491360783,82.8,142.76,142.67,30.85440841]
[1768491360980,5.09217923,142.75,142.67,24.54440841]
[1768491361189,0.05361831,142.73,142.67,24.54440841]
[1768491361886,0.05361831,142.73,142.68,6.3095]
[1768491362579,0.05361831,142.73,142.67,24.54440841]
[1768491363581,0.05361831,142.73,142.67,30.85440841]
[1768491364393,0.05361831,142.73,142.67,24.54440841]
[1768491365592,0.05361831,142.73,142.67,30.85440841]
[1768491366183,0.05361831,142.73,142.65,6.3107]
[1768491366388,29.2841646,142.72,142.64,24.54440841]
[1768491366594,5.08963059,142.71,142.64,24.54440841]
[1768491366891,0.04707343,142.69,142.67,0.04478648]
[1768491368202,0.04707343,142.69,142.61,24.54440841]
[1768491368491,24.19445657,142.69,142.61,24.54440841]
[1768491369388,0.05055045,142.66,142.61,24.54440841]
[1768491370996,0.05055045,142.66,142.62,0.04791309]
[1768491371194,24.24500702,142.66,142.62,0.04791309]
[1768491371793,24.24500702,142.66,142.56,6.3147]
[1768491371991,24.24500702,142.66,142.56,24.54440841]
[1768491372185,24.19445657,142.66,142.56,24.54440841]
[1768491372590,24.19445657,142.66,142.58,6.314]
[1768491372998,29.80314324,142.69,142.58,24.54440841]
[1768491373893,29.80314324,142.69,142.59,30.85790841]
[1768491374193,0.05250889,142.65,142.59,24.54440841]
[1768491374398,0.05250889,142.65,142.63,0.04452688]
[1768491375394,29.80314324,142.69,142.63,0.04452688]
[1768491376597,0.05238935,142.67,142.63,0.04452688]
[1768491378397,29.80314324,142.72,142.64,6.3113]
[1768491378601,29.80314324,142.72,142.63,24.58893529]
[1768491378802,29.80314324,142.72,142.63,24.54440841]
[1768491379502,29.80314324,142.72,142.66,0.04676615]
[1768491379999,5.60868667,142.69,142.57,24.54440841]
[1768491380195,24.19445657,142.68,142.57,24.54440841]
[1768491380503,24.19445657,142.68,142.59,6.3136]
[1768491380897,24.19445657,142.68,142.57,24.54440841]
[1768491381203,0.05158597,142.64,142.61,0.05219019]
[1768491386413,82.86,142.68,142.61,23.69403396]
[1768491386706,25.06979682,142.69,142.61,23.69403396]
[1768491386903,82.86,142.7,142.61,23.69403396]
[1768491387207,107.92979682,142.7,142.61,23.64184377]
[1768491387508,107.92979682,142.7,142.64,0.05114142]
[1768491387712,82.86,142.7,142.64,0.05114142]
[1768491388309,0.05211273,142.68,142.64,0.05114142]
[1768491391703,25.12190955,142.68,142.61,6.3124]
[1768491392407,25.12190955,142.68,142.62,6.3122]
[1768491393001,25.12190955,142.68,142.64,0.0469178]
[1768491393203,0.05211273,142.68,142.64,0.0469178]
[1768491394206,107.92979682,142.71,142.64,0.0469178]
[1768491394710,107.92979682,142.71,142.64,23.68876157]
[1768491395606,107.92979682,142.71,142.64,30.00006157]
[1768491396410,0.05336292,142.69,142.64,30.00006157]
[1768491396612,0.05336292,142.69,142.65,23.64184377]
[1768491397912,0.05336292,142.69,142.66,6.3104]
[1768491398113,0.05336292,142.69,142.65,23.64184377]
[1768491398915,0.05336292,142.69,142.64,6.3581178]
[1768491399213,0.05336292,142.69,142.64,29.99996157]
[1768491399415,0.05336292,142.69,142.65,29.95274377]
[1768491400408,0.05336292,142.69,142.65,23.64184377]
[1768491401911,0.05336292,142.69,142.67,6.3101]
[1768491402114,82.86,142.74,142.67,6.3101]
[1768491402310,5.09535022,142.73,142.67,6.3101]
[1768491402515,25.06979682,142.75,142.68,6.3095]
[1768491402712,25.06979682,142.78,142.68,23.64184377]
[1768491403020,5.09817052,142.77,142.68,23.64184377]
[1768491403218,5.09817052,142.76,142.72,0.04549475]
[1768491403411,25.06979682,142.77,142.72,0.04549475]
[1768491403612,0.04892493,142.75,142.72,0.04549475]
[1768491404918,25.11872175,142.75,142.72,0.04549475]
[1768491405119,30.17188091,142.74,142.64,23.64184377]
[1768491405317,25.06979682,142.72,142.61,23.64184377]
[1768491405514,25.06979682,142.7,142.58,23.64184377]
[1768491405814,9.13056425,142.72,142.58,23.64184377]
[1768491405815,25.06979682,142.68,142.58,23.64184377]
[1768491406017,30.17188091,142.67,142.57,82.82]
[1768491406321,30.17188091,142.66,142.58,6.314]
[1768491406615,0.05134229,142.63,142.55,121.88044377]
[1768491406819,0.05134229,142.63,142.56,29.95654377]
[1768491407222,25.06979682,142.64,142.56,29.95654377]
[1768491407518,0.04507952,142.61,142.56,23.64184377]
[1768491407818,0.04507952,142.61,142.59,0.04433287]
[1768491408314,0.04507952,142.61,142.54,23.64184377]
[1768491409011,0.04507952,142.61,142.56,23.64184377]
[1768491410523,0.04507952,142.61,142.57,29.95614377]
[1768491410713,0.04507952,142.61,142.57,30.00777162]
[1768491410918,106.625803,142.68,142.58,30.92473105]
[1768491411222,5.09920782,142.67,142.58,30.92473105]
[1768491411423,5.09920782,142.66,142.58,30.92473105]
[1768491411719,106.625803,142.68,142.58,30.92473105]
[1768491411918,28.86557321,142.67,142.58,30.92473105]
[1768491412223,28.86557321,142.66,142.58,24.61083105]
[1768491412423,0.04457373,142.64,142.56,24.61083105]
[1768491412823,0.04457373,142.64,142.59,30.92413105]
[1768491414023,0.04457373,142.64,142.6,0.04686396]
[1768491415825,0.04457373,142.64,142.6,24.65769501]
[1768491416525,23.765803,142.69,142.6,24.65769501]
[1768491416719,5.09885286,142.68,142.6,24.65769501]
[1768491416925,23.765803,142.69,142.61,6.3125]
[1768491417125,5.09844316,142.68,142.61,24.61083105]
[1768491417329,23.765803,142.69,142.61,24.61083105]
[1768491417627,5.09843889,142.68,142.61,24.61083105]
[1768491417827,0.05106083,142.66,142.64,0.0469514]
[1768491419421,0.05106083,142.66,142.6,6.3129]
[1768491420224,0.05106083,142.66,142.61,6.3127]
[1768491420434,0.05106083,142.66,142.61,30.92353105]
[1768491420924,0.05106083,142.66,142.62,0.04417901]
[1768491423036,23.765803,142.64,142.55,24.61083105]
[1768491423339,23.765803,142.62,142.55,24.61083105]
[1768491424237,28.85708854,142.61,142.52,24.61083105]
[1768491424535,0.04594732,142.6,142.52,24.61083105]
[1768491424743,0.04594732,142.6,142.53,30.92703105]
[1768491425132,23.765803,142.6,142.55,0.04615841]
[1768491425337,23.81284974,142.58,142.51,6.317]
[1768491425530,23.81284974,142.58,142.5,42.03610085]
[1768491426433,0.04704674,142.58,142.52,6.3166]
[1768491426629,23.765803,142.61,142.53,24.61083105]
[1768491426830,23.765803,142.61,142.53,24.65747049]
[1768491427226,147.765803,142.64,142.56,6.3148]
[1768491427431,23.765803,142.64,142.56,24.61083105]
[1768491428048,0.05267307,142.61,142.56,24.61083105]
[1768491428434,230.645803,142.67,142.57,0.05375412]
[1768491428634,5.0865214,142.66,142.57,0.05375412]
[1768491428835,5.0865214,142.65,142.56,24.61083105]
[1768491429137,106.645803,142.67,142.58,24.61083105]
[1768491429739,0.04527428,142.64,142.58,24.61083105]
[1768491430935,0.04527428,142.64,142.6,6.3129]
[1768491431338,0.04527428,142.64,142.58,24.61083105]
[1768491431545,23.765803,142.7,142.62,24.61083105]
[1768491431842,5.08606817,142.69,142.62,24.61083105]
[1768491432040,23.765803,142.7,142.62,24.61083105]
[1768491432237,106.645803,142.73,142.62,24.61083105]
[1768491432543,9.99725117,142.72,142.62,24.61083105]
[1768491432741,5.08821799,142.71,142.66,0.04758801]
[1768491432941,5.08821799,142.7,142.66,0.04758801]
[1768491433142,0.04689397,142.7,142.62,24.61083105]
[1768491433443,0.04689397,142.7,142.64,6.3114]
[1768491434053,0.04689397,142.7,142.65,6.3109]
[1768491434344,0.04689397,142.7,142.66,0.05308819]
[1768491436052,321.90884525,142.74,142.66,0.05308819]
[1768491436351,5.09262819,142.73,142.66,24.66391924]
[1768491436542,262.79464825,142.74,142.66,24.66391924]
[1768491436747,5.09238774,142.73,142.66,24.66391924]
[1768491436946,262.79464825,142.74,142.66,24.66391924]
[1768491437150,5.0923836,142.73,142.66,24.66391924]
[1768491437450,0.05056365,142.71,142.66,24.66391924]
[1768491437948,0.05056365,142.71,142.66,0.05308819]
[1768491439150,0.05056365,142.71,142.66,24.66391924]
[1768491440244,0.05056365,142.71,142.66,30.97431924]
[1768491440445,239.02884525,142.74,142.67,24.61083105]
[1768491440645,82.88,142.75,142.67,24.61083105]
[1768491441545,82.88,142.75,142.7,6.3086]
[1768491441749,0.04557459,142.72,142.7,6.35974304]
[1768491442149,230.625803,142.78,142.7,6.35974304]
[1768491442344,28.97085751,142.77,142.64,25.81133494]
[1768491442547,23.88403545,142.75,142.64,25.81133494]
[1768491442745,23.88403545,142.75,142.61,181.0361]
[1768491442746,23.88403545,142.73,142.61,108.65133494]
[1768491442948,23.88403545,142.71,142.61,25.81133494]
[1768491443246,92.95726993,142.72,142.58,25.81133494]
[1768491443247,23.88403545,142.69,142.58,25.81133494]
[1768491443446,23.88403545,142.67,142.58,25.81133494]
[1768491443646,0.04850793,142.65,142.62,0.05110281]
[1768491445548,0.04850793,142.65,142.57,6.3142]
[1768491446055,23.7876977,142.66,142.57,6.3142]
[1768491446254,5.08440998,142.65,142.57,6.3142]
[1768491446450,23.7876977,142.66,142.58,6.3138]
[1768491446948,23.7876977,142.66,142.57,6.3145]
[1768491447955,23.7876977,142.66,142.56,24.07062791]
[1768491448159,28.87386492,142.65,142.56,24.07062791]
[1768491448351,23.7876977,142.65,142.6,0.04987197]
[1768491448556,0.0455828,142.62,142.6,0.04987197]
[1768491450356,0.0455828,142.62,142.54,6.3157]
[1768491450754,23.7876977,142.63,142.54,30.38632791]
[1768491450953,5.08951538,142.62,142.54,30.38632791]
[1768491451256,23.7876977,142.63,142.54,30.38632791]
[1768491451459,0.04429298,142.59,142.55,6.3153]
[1768491451659,0.04429298,142.59,142.54,24.07062791]
[1768491452357,32.91826195,142.66,142.56,24.07062791]
[1768491452558,10.10348649,142.65,142.56,24.07062791]
[1768491452759,5.08888812,142.64,142.56,24.07062791]
[1768491452959,5.08888812,142.63,142.56,30.38532791]
[1768491453162,23.7876977,142.66,142.56,24.07062791]
[1768491453460,10.11087733,142.65,142.57,6.3144]
[1768491453662,5.09276789,142.64,142.57,6.3144]
[1768491453861,23.7876977,142.66,142.57,6.3144]
[1768491454063,5.09369247,142.65,142.57,6.3144]
[1768491454261,0.05254797,142.63,142.57,6.3144]
[1768491454462,0.05254797,142.63,142.6,0.05335416]
[1768491461265,23.84024567,142.63,142.55,24.07062791]
[1768491461461,5.09110571,142.62,142.52,24.07062791]
[1768491461662,23.7876977,142.63,142.52,24.07062791]
[1768491461863,5.09141014,142.62,142.52,24.07062791]
[1768491462059,23.7876977,142.63,142.52,24.07062791]
[1768491462262,5.09151773,142.62,142.55,6.3153]
[1768491462456,94.8162169,142.66,142.56,24.12199321]
[1768491462457,29.4132146,142.66,142.56,24.12199321]
[1768491462657,5.09092547,142.65,142.56,24.12199321]
[1768491462967,23.7876977,142.66,142.56,24.07062791]
[1768491463570,5.0950889,142.65,142.56,24.07062791]
[1768491463771,23.7876977,142.66,142.58,6.3141]
[1768491463970,5.09509208,142.65,142.58,6.3141]
[1768491464273,82.88,142.67,142.61,0.04760791]
[1768491464463,5.09529777,142.66,142.61,0.04760791]
[1768491464770,82.88,142.67,142.61,0.04760791]
[1768491464971,5.09560307,142.66,142.61,0.04760791]
[1768491465267,82.88,142.67,142.61,0.04760791]
[1768491465568,5.09543249,142.66,142.61,0.04760791]
[1768491465769,82.88,142.67,142.61,24.11823582]
[1768491466270,0.04444927,142.65,142.61,24.11823582]
[1768491466766,0.04444927,142.65,142.61,30.43063582]
[1768491467064,0.04444927,142.65,142.61,0.04760791]
[1768491468774,82.88,142.67,142.61,24.11823582]
[1768491468969,29.4132146,142.72,142.61,24.11823582]
[1768491469174,93.18260897,142.71,142.61,24.11823582]
[1768491469373,10.30260897,142.7,142.61,24.07062791]
[1768491469673,10.30260897,142.69,142.61,24.07062791]
[1768491469866,5.09824374,142.68,142.62,6.3122]
[1768491470069,106.6676977,142.71,142.64,0.05252747]
[1768491470264,10.30406285,142.7,142.64,0.05252747]
[1768491470464,10.30406285,142.69,142.64,0.05252747]
[1768491470667,106.6676977,142.71,142.64,0.05252747]
[1768491470872,10.30662348,142.7,142.64,0.05252747]
[1768491471070,10.30662348,142.69,142.64,0.05252747]
[1768491471373,0.05227849,142.68,142.64,0.05252747]
[1768491474177,5.10425321,142.67,142.64,0.05252747]
[1768491474474,0.05227849,142.68,142.64,0.05252747]
[1768491475366,2.25579553,142.68,142.64,0.05252747]
[1768491476974,26.06587642,142.68,142.64,0.05252747]
[1768491477273,26.01359793,142.66,142.6,6.3128]
[1768491477480,26.01359793,142.66,142.58,25.51066643]
[1768491477481,23.81008089,142.65,142.58,25.51066643]
[1768491477774,2.20351704,142.64,142.58,25.51066643]
[1768491478076,23.81008089,142.65,142.58,25.51066643]
[1768491478375,23.81008089,142.65,142.6,0.05150388]
[1768491478579,85.08351704,142.66,142.6,0.05150388]
[1768491478765,5.10576499,142.65,142.6,0.05150388]
[1768491478965,85.08351704,142.66,142.6,0.05150388]
[1768491478966,7.30900833,142.64,142.6,0.05150388]
[1768491479269,23.81008089,142.64,142.55,25.51066643]
[1768491479472,23.81008089,142.64,142.56,6.3147]
[1768491479973,28.91513248,142.63,142.56,6.3147]
[1768491480173,34.12605924,142.62,142.54,6.3156]
[1768491480371,5.15322906,142.61,142.58,0.04713515]
[1768491480572,0.04883677,142.61,142.58,0.04713515]
[1768491481677,23.81008089,142.6,142.52,25.51066643]
[1768491482770,0.04916469,142.57,142.52,25.51066643]
[1768491483271,0.04916469,142.57,142.52,31.82726643]
[1768491483473,0.04916469,142.57,142.5,17.4252698]
[1768491483678,0.04916469,142.57,142.5,42.93593623]
[1768491483884,0.04916469,142.57,142.53,0.05203913]
[1768491485574,23.85924558,142.57,142.53,0.05203913]
[1768491485777,28.91062198,142.56,142.5,17.4252698]
[1768491485976,23.81008089,142.56,142.5,17.4252698]
[1768491486778,0.04916469,142.57,142.5,42.93593623]
[1768491486974,5.10238791,142.56,142.5,42.93593623]
[1768491487175,0.04916469,142.57,142.52,0.05072402]
[1768491487482,10.31910643,142.56,142.52,0.05072402]
[1768491487680,0.04916469,142.57,142.52,0.05072402]
[1768491487882,10.31912441,142.56,142.5,17.4252698]
[1768491488079,28.91530722,142.55,142.5,14.43242167]
[1768491488277,28.91325827,142.54,142.44,25.51066643]
[1768491488482,23.81008089,142.54,142.46,25.51066643]
[1768491489185,0.04717794,142.51,142.46,25.51066643]
[1768491489570,82.9,142.55,142.46,25.51066643]
[1768491490381,82.9,142.55,142.47,31.82956643]
[1768491490581,23.81008089,142.57,142.47,31.82956643]
[1768491490778,23.81008089,142.57,142.47,25.51066643]
[1768491491178,82.92,142.58,142.49,25.51066643]
[1768491491476,5.09676144,142.57,142.49,25.51066643]
[1768491491677,88.54555797,142.59,142.49,25.51066643]
[1768491491875,10.30215251,142.58,142.49,25.51066643]
[1768491492073,88.54555797,142.59,142.49,25.51066643]
[1768491492277,0.04930166,142.55,142.49,25.51066643]
[1768491492583,0.04930166,142.55,142.53,0.04848367]
[1768491492783,0.04930166,142.55,142.49,25.51066643]
[1768491493781,0.04930166,142.55,142.49,31.82846643]
[1768491493982,0.04930166,142.55,142.49,25.51066643]
[1768491494179,0.04930166,142.55,142.46,108.39066643]
[1768491494378,23.85938255,142.55,142.46,82.88]
[1768491494676,88.54555797,142.59,142.43,25.51066643]
[1768491494677,34.08484534,142.54,142.43,25.51066643]
[1768491494883,0.04698063,142.52,142.46,6.3193]
[1768491495281,0.04698063,142.52,142.45,25.51066643]
[1768491495586,23.81008089,142.54,142.46,31.82976643]
[1768491495884,0.04786974,142.5,142.46,31.82976643]
[1768491496077,23.81008089,142.54,142.46,25.51066643]
[1768491496474,23.81008089,142.54,142.43,123.83056643]
[1768491496680,23.81008089,142.54,142.43,25.51066643]
[1768491496882,23.81008089,142.54,142.45,6.3198]
[1768491497885,0.0455442,142.51,142.46,31.82966643]
[1768491498488,0.0455442,142.51,142.44,6.3201]
[1768491498684,23.85562509,142.51,142.4,25.51066643]
[1768491498980,23.81008089,142.51,142.4,25.51066643]
[1768491499177,23.81008089,142.49,142.4,25.51066643]
[1768491499373,23.81008089,142.49,142.44,0.05089542]
[1768491499374,0.05196424,142.47,142.44,0.05089542]
[1768491499574,0.05196424,142.47,142.4,25.51066643]
[1768491499779,29.4876031,142.47,142.34,25.51066643]
[1768491499988,23.81008089,142.45,142.32,6.3254]
[1768491500185,23.81008089,142.43,142.32,25.51066643]
[1768491500482,23.81008089,142.43,142.3,6.3262]
[1768491500690,23.81008089,142.41,142.3,6.3262]
[1768491500882,0.04517895,142.39,142.36,0.04670236]
[1768491501190,0.04517895,142.39,142.32,25.76128592]
[1768491501882,29.72840166,142.44,142.33,25.76128592]
[1768491502196,29.72840166,142.44,142.3,32.08758592]
[1768491502378,24.10284369,142.4,142.3,25.76128592]
[1768491503087,24.10284369,142.4,142.27,25.76128592]
[1768491503088,24.14893428,142.36,142.27,25.76128592]
[1768491503278,0.04609059,142.36,142.26,101.33384803]
[1768491503479,24.10284369,142.39,142.27,98.4328]
[1768491503789,24.10284369,142.39,142.25,5.62555797]
[1768491503790,29.72840166,142.39,142.24,6.3291]
[1768491503989,24.10284369,142.35,142.21,98.4743]
[1768491504289,24.96702368,142.33,142.18,104.12175797]
[1768491504493,30.59258165,142.33,142.2,6.3309]
[1768491504785,24.91325264,142.33,142.13,98.5307]
[1768491504990,24.91325264,142.29,142.17,98.5028]
[1768491505190,0.04468098,142.28,142.19,24.82584846]
[1768491505390,0.04468098,142.28,142.19,123.31404846]
[1768491505689,24.91325264,142.32,142.22,0.05333055]
[1768491505892,24.91325264,142.32,142.22,24.87917901]
[1768491506185,24.91325264,142.32,142.2,24.82584846]
[1768491506491,24.91325264,142.32,142.21,24.82584846]
[1768491506785,24.91325264,142.36,142.25,24.82584846]
[1768491507485,0.04581758,142.32,142.25,24.82584846]
[1768491507686,0.04581758,142.32,142.22,24.82584846]
[1768491507881,24.91325264,142.32,142.22,24.82584846]
[1768491508286,0.05321811,142.28,142.2,24.82584846]
[1768491508485,0.05321811,142.28,142.26,0.04826165]
[1768491508687,24.91325264,142.35,142.22,24.82584846]
[1768491508897,83.0,142.34,142.23,24.82584846]
[1768491509687,107.91325264,142.34,142.23,24.82584846]
[1768491509886,107.91325264,142.34,142.24,24.82584846]
[1768491510082,24.91325264,142.38,142.27,24.8771443]
[1768491510297,83.02,142.37,142.27,24.8771443]
[1768491510484,83.02,142.37,142.27,24.82584846]
[1768491510886,24.91325264,142.42,142.3,24.82584846]
[1768491511087,107.93325264,142.42,142.3,24.82584846]
[1768491511286,107.93325264,142.42,142.35,0.04720468]
[1768491511691,0.05161731,142.37,142.35,0.04720468]
[1768491511993,24.91325264,142.41,142.27,24.82584846]
[1768491512194,24.91325264,142.39,142.27,24.82584846]
[1768491512992,24.91325264,142.39,142.24,6.3291]
[1768491513193,24.91325264,142.39,142.24,31.15494846]
[1768491513397,0.05124553,142.33,142.24,31.15494846]
[1768491513794,83.04,142.34,142.24,31.15494846]
[1768491513990,107.95325264,142.34,142.24,31.15494846]
[1768491514195,24.91325264,142.34,142.24,31.15494846]
[1768491514396,107.95325264,142.34,142.24,31.15494846]
[1768491514600,0.04714697,142.3,142.24,31.15494846]
[1768491515103,0.04714697,142.3,142.28,0.04904553]
[1768491515299,0.04714697,142.3,142.22,104.09055797]
[1768491515300,0.04714697,142.3,142.22,6.33]
[1768491515598,0.04714697,142.3,142.21,24.82584846]
[1768491515795,0.04714697,142.3,142.24,24.82584846]
[1768491515995,24.91325264,142.34,142.24,24.82584846]
[1768491516198,24.91325264,142.34,142.24,98.4517]
[1768491516398,83.04,142.34,142.25,24.82584846]
[1768491516600,0.04653655,142.3,142.25,24.82584846]
[1768491517201,0.04653655,142.3,142.26,0.04575718]
[1768491518004,83.04,142.34,142.26,0.04575718]
[1768491518199,24.91325264,142.35,142.26,24.87160564]
[1768491518408,83.04,142.35,142.26,24.87160564]
[1768491518594,83.04,142.35,142.26,24.82584846]
[1768491518802,24.91325264,142.38,142.26,24.82584846]
[1768491519096,83.04,142.37,142.29,0.04464088]
[1768491519308,24.91325264,142.36,142.29,0.04464088]
[1768491519504,24.91325264,142.36,142.26,24.82584846]
[1768491519705,24.91325264,142.39,142.26,24.82584846]
[1768491520007,83.04,142.38,142.27,6.3275]
[1768491520208,83.04,142.38,142.28,24.82584846]
[1768491521097,83.04,142.38,142.32,0.04942556]
[1768491521098,0.04491512,142.34,142.32,0.04942556]
[1768491521897,83.06,142.39,142.32,0.04942556]
[1768491522300,107.97325264,142.39,142.32,0.04942556]
[1768491522604,24.91325264,142.38,142.32,0.04942556]
[1768491522805,24.91325264,142.38,142.27,24.82584846]
[1768491523109,24.91325264,142.37,142.27,24.82584846]
[1768491523513,83.06,142.36,142.27,24.82584846]
[1768491523812,107.97325264,142.36,142.27,24.82584846]
[1768491524112,0.04576344,142.33,142.24,24.82584846]
[1768491524522,107.97325264,142.36,142.27,0.04469912]
[1768491524825,83.06,142.35,142.24,24.82584846]
[1768491525318,24.91325264,142.34,142.24,24.82584846]
[1768491525912,24.91325264,142.34,142.2,24.82584846]
[1768491526112,0.05116933,142.3,142.2,24.82584846]
[1768491526612,24.91325264,142.32,142.2,24.82584846]
[1768491526613,83.06,142.29,142.2,24.82584846]
[1768491527013,24.91325264,142.32,142.22,6.3299]
[1768491527224,24.91325264,142.32,142.23,24.82584846]
[1768491527225,83.06,142.31,142.23,24.82584846]
[1768491527420,83.06,142.31,142.22,6.3299]
[1768491527421,0.05353294,142.26,142.19,24.82584846]
[1768491527618,24.91325264,142.3,142.19,24.82584846]
[1768491528015,0.0483331,142.26,142.19,24.82584846]
[1768491528216,0.0483331,142.26,142.16,24.82584846]
[1768491528624,83.06,142.25,142.16,24.82584846]
[1768491528922,0.0513695,142.22,142.2,0.05260709]
[1768491529612,0.0513695,142.22,142.12,24.82584846]
[1768491529813,83.1113695,142.22,142.13,24.82584846]
[1768491530120,83.06,142.22,142.13,24.82584846]
[1768491530322,24.91325264,142.26,142.13,24.82584846]
[1768491530625,24.91325264,142.24,142.13,24.82584846]
[1768491530823,26.1428599,142.27,142.14,23.89121565]
[1768491531121,83.06,142.23,142.14,23.89121565]
[1768491532127,0.05222499,142.2,142.17,0.05086614]
[1768491532520,24.91871469,142.18,142.06,23.89121565]
[1768491532726,24.91871469,142.16,142.02,23.89121565]
[1768491532925,24.91871469,142.1,141.98,23.89121565]
[1768491533226,9.17729951,142.11,141.94,98.6617]
[1768491533227,24.91871469,142.07,141.94,23.89121565]
[1768491533424,24.91871469,142.07,141.9,98.6853]
[1768491533425,31.25631469,142.06,141.91,23.89121565]
[1768491533628,24.91871469,142.05,141.92,23.89121565]
[1768491533825,92.25729951,142.12,141.98,23.89121565]
[1768491534124,24.91871469,142.12,142.02,23.89121565]
[1768491534326,83.1,142.14,142.02,122.49791565]
[1768491534525,24.91871469,142.12,142.0,98.6209]
[1768491534825,24.91871469,142.1,141.96,98.6463]
[1768491535026,34.0960142,142.13,141.98,104.9747]
[1768491535330,0.04945305,142.04,141.99,98.6225]
[1768491535624,24.91871469,142.17,142.04,98.64197906]
[1768491535825,24.91871469,142.17,142.04,0.04977906]
[1768491536026,24.91871469,142.17,142.06,98.5763]
[1768491536229,24.91871469,142.17,142.04,98.5902]
[1768491536434,24.91871469,142.17,142.04,98.593]
[1768491536727,24.91871469,142.17,142.09,0.04438477]
[1768491537127,0.04908122,142.14,142.09,0.04438477]
[1768491537830,108.03871469,142.21,142.09,10.30836988]
[1768491538019,98.4508,142.25,142.11,8.69144986]
[1768491538020,24.91871469,142.25,142.11,8.69144986]
[1768491538329,24.91871469,142.23,142.11,8.69144986]
[1768491538922,24.91871469,142.23,142.16,0.04693942]
[1768491539134,24.91871469,142.22,142.07,8.61670284]
[1768491539431,24.91871469,142.2,142.07,8.61670284]
[1768491539925,34.0960142,142.24,142.1,15.08529049]
[1768491540123,108.03871469,142.23,142.1,15.08529049]
[1768491540324,9.17729951,142.3,142.1,15.08529049]
[1768491540325,26.1428599,142.27,142.16,0.05376494]
[1768491540523,24.91871469,142.27,142.16,8.80405543]
[1768491540829,26.14303217,142.25,142.12,8.75029049]
[1768491541129,24.91871469,142.23,142.12,8.75029049]
[1768491541324,24.91871469,142.23,142.08,83.1]
[1768491541325,24.91871469,142.22,142.08,98.31809379]
[1768491541535,0.04496374,142.19,142.16,0.05298256]
[1768491541721,0.04496374,142.19,142.09,98.558]
[1768491541925,0.04496374,142.19,142.1,8.88189379]
[1768491542233,108.05871469,142.22,142.1,15.21699379]
[1768491542731,24.91871469,142.21,142.1,8.88189379]
[1768491543033,0.04666473,142.17,142.06,9.14002581]
[1768491543331,24.91871469,142.21,142.09,9.19241467]